[Event "Early-Titled-Tuesday-Blitz-March-05-2024"]
[Site "Chess.com"]
[Date "2024.03.05"]
[Round "2"]
[White "margarita_2703"]
[Black "Goryachkina"]
[Result "1-0"]
[WhiteElo "2402"]
[BlackElo "2673"]
[TimeControl "180+1"]
[EndTime "8:18:33 PST"]
[Termination "margarita_2703 won on time"]

1. e4 {[%clk 0:03:00.9]} 1... c5 {[%clk 0:02:59.6]} 2. Nf3 {[%clk 0:03:00.5]}
2... e6 {[%clk 0:02:59.7]} 3. c3 {[%clk 0:02:59.6]} 3... Nf6 {[%clk 0:02:58.3]}
4. e5 {[%clk 0:02:59.6]} 4... Nd5 {[%clk 0:02:58.5]} 5. d4 {[%clk 0:03:00.5]}
5... cxd4 {[%clk 0:02:57.9]} 6. cxd4 {[%clk 0:02:59.4]} 6... d6 {[%clk 0:02:58]}
7. Bd3 {[%clk 0:02:55.8]} 7... dxe5 {[%clk 0:02:47.6]} 8. dxe5 {[%clk
0:02:56.7]} 8... Nb4 {[%clk 0:02:46.9]} 9. Bb5+ {[%clk 0:02:49.4]} 9... Bd7
{[%clk 0:02:46.3]} 10. Bc4 {[%clk 0:02:42.7]} 10... Qc7 {[%clk 0:02:38.8]} 11.
Qe2 {[%clk 0:02:40.2]} 11... b5 {[%clk 0:02:27.1]} 12. Bb3 {[%clk 0:02:37.7]}
12... a5 {[%clk 0:02:26.1]} 13. a3 {[%clk 0:02:35.4]} 13... N4a6 {[%clk
0:02:25.5]} 14. O-O {[%clk 0:02:33]} 14... a4 {[%clk 0:02:03.3]} 15. Bc2 {[%clk
0:02:22]} 15... b4 {[%clk 0:02:02.8]} 16. Be4 {[%clk 0:02:21.4]} 16... Ra7
{[%clk 0:02:01.1]} 17. Be3 {[%clk 0:02:20.5]} 17... Bc5 {[%clk 0:01:46.5]} 18.
Rc1 {[%clk 0:02:19.2]} 18... Qb6 {[%clk 0:01:42.8]} 19. Nbd2 {[%clk 0:02:14.9]}
19... Bxe3 {[%clk 0:01:32.1]} 20. Nc4 {[%clk 0:02:14.6]} 20... Bxf2+ {[%clk
0:01:13.4]} 21. Kf1 {[%clk 0:01:42.1]} 21... Bb5 {[%clk 0:00:24.8]} 22. Nd6+
{[%clk 0:01:35.1]} 22... Qxd6 {[%clk 0:00:24.7]} 23. Qxb5+ {[%clk 0:01:34.8]}
23... Qd7 {[%clk 0:00:24]} 24. Rc8+ {[%clk 0:01:34.1]} 24... Ke7 {[%clk
0:00:23.5]} 25. Qxd7+ {[%clk 0:01:34.2]} 25... Nxd7 {[%clk 0:00:22.9]} 26. Rxh8
{[%clk 0:01:34.5]} 26... Bc5 {[%clk 0:00:16.4]} 27. Rxh7 {[%clk 0:01:32.3]}
27... bxa3 {[%clk 0:00:10]} 28. bxa3 {[%clk 0:01:33.2]} 28... Kf8 {[%clk
0:00:07.5]} 29. Rh8+ {[%clk 0:01:32.1]} 29... Ke7 {[%clk 0:00:07.7]} 30. h4
{[%clk 0:01:32.6]} 30... Rc7 {[%clk 0:00:06.3]} 31. h5 {[%clk 0:01:28.6]} 31...
Be3 {[%clk 0:00:03.9]} 32. Rg8 {[%clk 0:01:22.8]} 32... Bf4 {[%clk 0:00:03.6]}
33. Rxg7 {[%clk 0:01:19.7]} 33... Nxe5 {[%clk 0:00:03.9]} 34. Rd1 {[%clk
0:01:04.8]} 34... Nxf3 {[%clk 0:00:03.3]} 35. Bxf3 {[%clk 0:01:05.5]} 35... Nc5
{[%clk 0:00:03]} 36. Rg4 {[%clk 0:00:55.6]} 36... Be5 {[%clk 0:00:03]} 37. Rc4
{[%clk 0:00:54.3]} 37... Na6 {[%clk 0:00:02.3]} 38. Rxc7+ {[%clk 0:00:53.4]}
38... Nxc7 {[%clk 0:00:02.7]} 39. Rc1 {[%clk 0:00:51]} 39... Nd5 {[%clk
0:00:01.9]} 40. Bxd5 {[%clk 0:00:49.8]} 40... exd5 {[%clk 0:00:02.4]} 41. Re1
{[%clk 0:00:49.2]} 41... Kf6 {[%clk 0:00:02.2]} 42. Rxe5 {[%clk 0:00:48.9]}
42... Kxe5 {[%clk 0:00:02.2]} 43. g4 {[%clk 0:00:38.4]} 43... f5 {[%clk
0:00:02]} 44. g5 {[%clk 0:00:34.1]} 44... f4 {[%clk 0:00:01.6]} 45. h6 {[%clk
0:00:31.3]} 1-0

[Event "Early-Titled-Tuesday-Blitz-March-05-2024"]
[Site "Chess.com"]
[Date "2024.03.05"]
[Round "2"]
[White "wannabe2700"]
[Black "Khromkin"]
[Result "1-0"]
[WhiteElo "2755"]
[BlackElo "2405"]
[TimeControl "180+1"]
[EndTime "8:18:34 PST"]
[Termination "wannabe2700 won on time"]

1. b3 {[%clk 0:03:00.9]} 1... c5 {[%clk 0:02:59]} 2. Bb2 {[%clk 0:03:01.8]} 2...
Nc6 {[%clk 0:02:59.5]} 3. f4 {[%clk 0:03:00]} 3... d5 {[%clk 0:02:57.2]} 4. Nf3
{[%clk 0:02:59.9]} 4... e6 {[%clk 0:02:49.3]} 5. e3 {[%clk 0:02:59.7]} 5... f6
{[%clk 0:02:49.5]} 6. Bb5 {[%clk 0:02:59.8]} 6... Bd7 {[%clk 0:02:46.5]} 7. Nh4
{[%clk 0:02:54.1]} 7... g6 {[%clk 0:02:44.7]} 8. O-O {[%clk 0:02:49]} 8... Bg7
{[%clk 0:02:37]} 9. c4 {[%clk 0:02:49.1]} 9... Nge7 {[%clk 0:02:36.7]} 10. cxd5
{[%clk 0:02:34.8]} 10... exd5 {[%clk 0:02:35.9]} 11. Bxc6 {[%clk 0:02:35.4]}
11... bxc6 {[%clk 0:02:26.6]} 12. Nc3 {[%clk 0:02:35.6]} 12... Rb8 {[%clk
0:02:25.2]} 13. Na4 {[%clk 0:02:35]} 13... c4 {[%clk 0:02:25.5]} 14. bxc4 {[%clk
0:02:34.4]} 14... O-O {[%clk 0:02:21.7]} 15. cxd5 {[%clk 0:02:32.2]} 15... cxd5
{[%clk 0:02:20.9]} 16. Bd4 {[%clk 0:02:30.2]} 16... Rb4 {[%clk 0:02:00.3]} 17.
Nc3 {[%clk 0:02:16]} 17... Qa5 {[%clk 0:01:49.3]} 18. Ne2 {[%clk 0:01:52.3]}
18... Qa6 {[%clk 0:01:45.4]} 19. Bc5 {[%clk 0:01:50.2]} 19... Nc6 {[%clk
0:01:23.1]} 20. Nc3 {[%clk 0:01:44.6]} 20... d4 {[%clk 0:01:15.9]} 21. Nd5
{[%clk 0:01:28.9]} 21... Rc4 {[%clk 0:01:05.9]} 22. Bxf8 {[%clk 0:01:27.1]}
22... Kxf8 {[%clk 0:01:01.3]} 23. Qb3 {[%clk 0:01:26.6]} 23... Na5 {[%clk
0:00:53.1]} 24. Qa3+ {[%clk 0:01:23.7]} 24... Kg8 {[%clk 0:00:47.7]} 25. Rac1
{[%clk 0:01:09.5]} 25... Ra4 {[%clk 0:00:37.5]} 26. Qe7 {[%clk 0:01:06.6]} 26...
Qe6 {[%clk 0:00:37.9]} 27. Qd8+ {[%clk 0:01:04]} 27... Qe8 {[%clk 0:00:37.7]}
28. Nxf6+ {[%clk 0:01:02.8]} 28... Bxf6 {[%clk 0:00:36.4]} 29. Qxf6 {[%clk
0:01:03.7]} 29... dxe3 {[%clk 0:00:30.1]} 30. dxe3 {[%clk 0:01:04.6]} 30... Nc4
{[%clk 0:00:28.5]} 31. f5 {[%clk 0:00:57.1]} 31... Nxe3 {[%clk 0:00:15.8]} 32.
Rfe1 {[%clk 0:00:56.8]} 32... Re4 {[%clk 0:00:15.6]} 33. fxg6 {[%clk 0:00:56.1]}
33... hxg6 {[%clk 0:00:16.2]} 34. Nxg6 {[%clk 0:00:55.5]} 34... Re6 {[%clk
0:00:08.6]} 35. Qh8+ {[%clk 0:00:54.8]} 35... Kf7 {[%clk 0:00:09]} 36. Qh7+
{[%clk 0:00:52.7]} 36... Kf6 {[%clk 0:00:07.3]} 37. Rf1+ {[%clk 0:00:38.7]}
37... Nxf1 {[%clk 0:00:07.3]} 38. Rxf1+ {[%clk 0:00:39.6]} 38... Kg5 {[%clk
0:00:07.8]} 39. h4+ {[%clk 0:00:38.2]} 39... Kg4 {[%clk 0:00:08.1]} 40. Rf4+
{[%clk 0:00:32.6]} 40... Kg3 {[%clk 0:00:08.1]} 41. Rf3+ {[%clk 0:00:33.2]}
41... Kg4 {[%clk 0:00:08.2]} 42. Ne5+ {[%clk 0:00:24.2]} 42... Rxe5 {[%clk
0:00:03.9]} 43. Qg7+ {[%clk 0:00:24.9]} 43... Kh5 {[%clk 0:00:01.6]} 44. g4+
{[%clk 0:00:19.5]} 1-0

[Event "Early-Titled-Tuesday-Blitz-March-05-2024"]
[Site "Chess.com"]
[Date "2024.03.05"]
[Round "2"]
[White "JaackCamel"]
[Black "MaxLeto"]
[Result "0-1"]
[WhiteElo "2223"]
[BlackElo "2482"]
[TimeControl "180+1"]
[EndTime "8:18:34 PST"]
[Termination "MaxLeto won by resignation"]

1. d4 {[%clk 0:03:00.9]} 1... h5 {[%clk 0:02:55.5]} 2. c4 {[%clk 0:02:59.9]}
2... h4 {[%clk 0:02:56.4]} 3. h3 {[%clk 0:02:59]} 3... d6 {[%clk 0:02:56.4]} 4.
e4 {[%clk 0:02:58.2]} 4... e5 {[%clk 0:02:56.5]} 5. Nf3 {[%clk 0:02:55.6]} 5...
Nc6 {[%clk 0:02:54.9]} 6. d5 {[%clk 0:02:53.3]} 6... Nb8 {[%clk 0:02:48.8]} 7.
Nc3 {[%clk 0:02:52.6]} 7... Be7 {[%clk 0:02:43.4]} 8. Be2 {[%clk 0:02:51.1]}
8... Nf6 {[%clk 0:02:42.4]} 9. Be3 {[%clk 0:02:50]} 9... Nbd7 {[%clk 0:02:38.9]}
10. b4 {[%clk 0:02:47.3]} 10... a5 {[%clk 0:02:38]} 11. a3 {[%clk 0:02:46.3]}
11... Nh5 {[%clk 0:02:37.2]} 12. c5 {[%clk 0:01:48.1]} 12... Nf4 {[%clk
0:02:29.2]} 13. Rg1 {[%clk 0:01:31.8]} 13... axb4 {[%clk 0:02:22.4]} 14. axb4
{[%clk 0:01:30.3]} 14... Rxa1 {[%clk 0:02:23.3]} 15. Qxa1 {[%clk 0:01:29.9]}
15... dxc5 {[%clk 0:02:22.2]} 16. Nb5 {[%clk 0:01:04.9]} 16... O-O {[%clk
0:01:28.7]} 17. bxc5 {[%clk 0:00:38.6]} 17... Nxc5 {[%clk 0:01:06.3]} 18. Nxe5
{[%clk 0:00:22.7]} 18... Nxe2 {[%clk 0:00:47]} 19. Kxe2 {[%clk 0:00:20.4]} 19...
Nxe4 {[%clk 0:00:47.6]} 20. Ng4 {[%clk 0:00:17.4]} 20... Qxd5 {[%clk 0:00:40.6]}
21. Rb1 {[%clk 0:00:15.4]} 21... c6 {[%clk 0:00:30.1]} 22. Nd4 {[%clk
0:00:14.7]} 22... Bxg4+ {[%clk 0:00:28.2]} 23. hxg4 {[%clk 0:00:14.1]} 23... Bf6
{[%clk 0:00:29.1]} 24. Rd1 {[%clk 0:00:11.5]} 24... Rd8 {[%clk 0:00:24.3]} 25.
Kf1 {[%clk 0:00:11.3]} 25... c5 {[%clk 0:00:22.6]} 26. Qa5 {[%clk 0:00:11.8]}
26... cxd4 {[%clk 0:00:21.3]} 27. Qxd5 {[%clk 0:00:11.7]} 27... Rxd5 {[%clk
0:00:22.2]} 28. Bf4 {[%clk 0:00:11.8]} 28... d3 {[%clk 0:00:20.5]} 29. f3 {[%clk
0:00:12]} 29... Ng3+ {[%clk 0:00:16.6]} 30. Kf2 {[%clk 0:00:10.9]} 30... Bd4+
{[%clk 0:00:14.6]} 31. Ke1 {[%clk 0:00:10.8]} 31... Bc3+ {[%clk 0:00:14.3]} 32.
Kf2 {[%clk 0:00:10.9]} 32... g5 {[%clk 0:00:13.1]} 33. Bxg3 {[%clk 0:00:10.4]}
33... hxg3+ {[%clk 0:00:12.8]} 34. Kxg3 {[%clk 0:00:10.9]} 34... b5 {[%clk
0:00:13]} 35. f4 {[%clk 0:00:11]} 35... b4 {[%clk 0:00:12.3]} 36. Kf3 {[%clk
0:00:07.8]} 36... d2 {[%clk 0:00:10.8]} 37. Ke4 {[%clk 0:00:08]} 37... Rd4+
{[%clk 0:00:11.3]} 38. Ke3 {[%clk 0:00:07.3]} 38... gxf4+ {[%clk 0:00:11.4]} 39.
Ke2 {[%clk 0:00:06.9]} 39... b3 {[%clk 0:00:12.1]} 40. g3 {[%clk 0:00:03.3]}
40... fxg3 {[%clk 0:00:11.7]} 0-1

[Event "Early-Titled-Tuesday-Blitz-March-05-2024"]
[Site "Chess.com"]
[Date "2024.03.05"]
[Round "2"]
[White "Polish_fighter3000"]
[Black "Titus369"]
[Result "1-0"]
[WhiteElo "3111"]
[BlackElo "2634"]
[TimeControl "180+1"]
[EndTime "8:18:37 PST"]
[Termination "Polish_fighter3000 won by resignation"]

1. e4 {[%clk 0:03:00.9]} 1... c5 {[%clk 0:02:56.5]} 2. b4 {[%clk 0:03:01.1]}
2... cxb4 {[%clk 0:02:54.9]} 3. a3 {[%clk 0:03:01.2]} 3... bxa3 {[%clk
0:02:50.5]} 4. Bxa3 {[%clk 0:03:00.3]} 4... Nc6 {[%clk 0:02:46.6]} 5. d4 {[%clk
0:02:58.7]} 5... d5 {[%clk 0:02:46.3]} 6. exd5 {[%clk 0:02:40.6]} 6... Qxd5
{[%clk 0:02:45]} 7. Nf3 {[%clk 0:02:41.2]} 7... Bg4 {[%clk 0:02:42.1]} 8. Be2
{[%clk 0:02:40.7]} 8... Nf6 {[%clk 0:02:36.1]} 9. c4 {[%clk 0:02:36.9]} 9... Qf5
{[%clk 0:01:55.6]} 10. d5 {[%clk 0:02:13.1]} 10... Ne5 {[%clk 0:01:53.5]} 11.
Nc3 {[%clk 0:01:54.9]} 11... Bxf3 {[%clk 0:01:37.4]} 12. gxf3 {[%clk 0:01:55.8]}
12... a6 {[%clk 0:01:26.7]} 13. Rb1 {[%clk 0:01:46.9]} 13... Qd7 {[%clk
0:01:14.1]} 14. Qb3 {[%clk 0:01:05.9]} 14... e6 {[%clk 0:00:57.5]} 15. Bxf8
{[%clk 0:01:04.4]} 15... Kxf8 {[%clk 0:00:54.7]} 16. f4 {[%clk 0:00:51.8]} 16...
Ng6 {[%clk 0:00:48.8]} 17. f5 {[%clk 0:00:52.1]} 17... exf5 {[%clk 0:00:44.7]}
18. Qxb7 {[%clk 0:00:49.2]} 18... Qxb7 {[%clk 0:00:36.9]} 19. Rxb7 {[%clk
0:00:50.1]} 19... Rc8 {[%clk 0:00:35.7]} 20. Na4 {[%clk 0:00:23.9]} 20... Ne5
{[%clk 0:00:30.3]} 21. Nb6 {[%clk 0:00:21.2]} 21... Re8 {[%clk 0:00:19.9]} 22.
O-O {[%clk 0:00:19.2]} 22... Ne4 {[%clk 0:00:16.8]} 23. Rc1 {[%clk 0:00:14.6]}
23... Nc5 {[%clk 0:00:11]} 24. Rc7 {[%clk 0:00:14.3]} 24... Nb3 {[%clk
0:00:11.5]} 25. Rd1 {[%clk 0:00:13.4]} 25... g6 {[%clk 0:00:11]} 26. c5 {[%clk
0:00:13.3]} 26... Kg7 {[%clk 0:00:11.2]} 27. d6 {[%clk 0:00:13.6]} 27... Nd7
{[%clk 0:00:06.4]} 28. Rxd7 {[%clk 0:00:06.3]} 28... Rxe2 {[%clk 0:00:06]} 29.
c6 {[%clk 0:00:06.9]} 29... Nc5 {[%clk 0:00:05.8]} 30. Re7 {[%clk 0:00:04.7]}
30... Rxe7 {[%clk 0:00:04.3]} 31. dxe7 {[%clk 0:00:05.6]} 31... Ne6 {[%clk
0:00:04]} 32. Rd7 {[%clk 0:00:03.6]} 32... Re8 {[%clk 0:00:04.1]} 33. Nd5 {[%clk
0:00:03.8]} 33... a5 {[%clk 0:00:04.1]} 34. c7 {[%clk 0:00:04.1]} 34... a4
{[%clk 0:00:02.8]} 35. Nb6 {[%clk 0:00:03.5]} 35... Nxc7 {[%clk 0:00:02.1]} 36.
Rxc7 {[%clk 0:00:04.4]} 36... a3 {[%clk 0:00:02.4]} 37. Nd5 {[%clk 0:00:05]}
37... f6 {[%clk 0:00:02]} 38. Ra7 {[%clk 0:00:05.2]} 38... Kf7 {[%clk
0:00:02.1]} 39. Rxa3 {[%clk 0:00:05.8]} 39... Ke6 {[%clk 0:00:02.7]} 40. Nc7+
{[%clk 0:00:06]} 40... Kxe7 {[%clk 0:00:02.7]} 41. Re3+ {[%clk 0:00:06.7]} 1-0

[Event "Early-Titled-Tuesday-Blitz-March-05-2024"]
[Site "Chess.com"]
[Date "2024.03.05"]
[Round "2"]
[White "Agent-JL"]
[Black "Zhigalko_Sergei"]
[Result "0-1"]
[WhiteElo "2583"]
[BlackElo "2895"]
[TimeControl "180+1"]
[EndTime "8:18:37 PST"]
[Termination "Zhigalko_Sergei won by checkmate"]

1. d4 {[%clk 0:02:56.2]} 1... Nf6 {[%clk 0:03:00.1]} 2. c4 {[%clk 0:02:55.8]}
2... e6 {[%clk 0:03:00.4]} 3. Nf3 {[%clk 0:02:55.5]} 3... b6 {[%clk 0:02:59]} 4.
g3 {[%clk 0:02:51]} 4... Ba6 {[%clk 0:02:58.4]} 5. Qc2 {[%clk 0:02:50.3]} 5...
Bb4+ {[%clk 0:02:58]} 6. Nbd2 {[%clk 0:02:46.8]} 6... Bb7 {[%clk 0:02:51.8]} 7.
Bg2 {[%clk 0:02:44.3]} 7... Be4 {[%clk 0:02:51.1]} 8. Qb3 {[%clk 0:02:44.2]}
8... Bxd2+ {[%clk 0:02:47]} 9. Bxd2 {[%clk 0:02:43.3]} 9... O-O {[%clk
0:02:44.6]} 10. O-O {[%clk 0:02:43.2]} 10... d6 {[%clk 0:02:39.4]} 11. Rac1
{[%clk 0:02:39.5]} 11... Nbd7 {[%clk 0:02:38.9]} 12. Bc3 {[%clk 0:02:33.9]}
12... Qe7 {[%clk 0:02:37]} 13. Rfe1 {[%clk 0:02:30.7]} 13... h6 {[%clk
0:02:36.2]} 14. Bh3 {[%clk 0:02:25.1]} 14... a5 {[%clk 0:02:34.2]} 15. Nd2
{[%clk 0:02:23.2]} 15... Bb7 {[%clk 0:02:32.8]} 16. e4 {[%clk 0:02:21]} 16... e5
{[%clk 0:02:32.3]} 17. d5 {[%clk 0:02:15.2]} 17... Nc5 {[%clk 0:02:29.7]} 18.
Qc2 {[%clk 0:02:15.5]} 18... Bc8 {[%clk 0:02:29.1]} 19. Bg2 {[%clk 0:02:04.7]}
19... Nh7 {[%clk 0:02:16.4]} 20. b3 {[%clk 0:02:01.2]} 20... f5 {[%clk 0:01:22]}
21. a3 {[%clk 0:01:45.4]} 21... fxe4 {[%clk 0:01:13.6]} 22. Nxe4 {[%clk
0:01:37.8]} 22... Nxe4 {[%clk 0:01:11.9]} 23. Qxe4 {[%clk 0:01:22.6]} 23... Ng5
{[%clk 0:01:11.3]} 24. Qe2 {[%clk 0:01:21]} 24... Qf7 {[%clk 0:00:52.6]} 25. f4
{[%clk 0:00:50.4]} 25... exf4 {[%clk 0:00:50.5]} 26. gxf4 {[%clk 0:00:51.3]}
26... Nh3+ {[%clk 0:00:48.3]} 27. Bxh3 {[%clk 0:00:49.6]} 27... Bxh3 {[%clk
0:00:49]} 28. Qf3 {[%clk 0:00:37.5]} 28... Bf5 {[%clk 0:00:35.6]} 29. Re3 {[%clk
0:00:33.1]} 29... Rae8 {[%clk 0:00:32.3]} 30. Rce1 {[%clk 0:00:31.2]} 30... Rxe3
{[%clk 0:00:30.7]} 31. Rxe3 {[%clk 0:00:31.8]} 31... Kh7 {[%clk 0:00:30.8]} 32.
Qg3 {[%clk 0:00:27.5]} 32... Rg8 {[%clk 0:00:26.2]} 33. h4 {[%clk 0:00:15.7]}
33... Qh5 {[%clk 0:00:25.2]} 34. Re7 {[%clk 0:00:14.9]} 34... Bg6 {[%clk
0:00:23.2]} 35. Kh2 {[%clk 0:00:12.6]} 35... Qf5 {[%clk 0:00:20.2]} 36. Rxc7
{[%clk 0:00:09.1]} 36... Qc2+ {[%clk 0:00:19.9]} 37. Kg1 {[%clk 0:00:09.4]}
37... Qc1+ {[%clk 0:00:16.6]} 38. Kh2 {[%clk 0:00:08.5]} 38... Qc2+ {[%clk
0:00:16.5]} 39. Kg1 {[%clk 0:00:07.7]} 39... Qxb3 {[%clk 0:00:14.8]} 40. f5
{[%clk 0:00:03.6]} 40... Qb1+ {[%clk 0:00:14.8]} 41. Kh2 {[%clk 0:00:04.2]}
41... Qxf5 {[%clk 0:00:13.9]} 42. Qxd6 {[%clk 0:00:04.3]} 42... Qf2+ {[%clk
0:00:13]} 43. Kh3 {[%clk 0:00:04.7]} 43... Bf5# {[%clk 0:00:13.3]} 0-1

[Event "Early-Titled-Tuesday-Blitz-March-05-2024"]
[Site "Chess.com"]
[Date "2024.03.05"]
[Round "2"]
[White "AlexPapasimakopoulos"]
[Black "Chessdreamer2020"]
[Result "1-0"]
[WhiteElo "2732"]
[BlackElo "2525"]
[TimeControl "180+1"]
[EndTime "8:18:37 PST"]
[Termination "AlexPapasimakopoulos won by resignation"]

1. d4 {[%clk 0:03:00.9]} 1... d6 {[%clk 0:02:59.8]} 2. Nf3 {[%clk 0:03:00.3]}
2... Bg4 {[%clk 0:02:59.3]} 3. e4 {[%clk 0:02:59.2]} 3... Nf6 {[%clk 0:02:58.4]}
4. Nc3 {[%clk 0:02:58.7]} 4... e6 {[%clk 0:02:58.3]} 5. Be2 {[%clk 0:02:55.8]}
5... d5 {[%clk 0:02:58.3]} 6. Bg5 {[%clk 0:02:49.5]} 6... dxe4 {[%clk
0:02:54.4]} 7. Nxe4 {[%clk 0:02:49.3]} 7... Be7 {[%clk 0:02:54.1]} 8. Ng3 {[%clk
0:02:45.7]} 8... h6 {[%clk 0:02:46.7]} 9. Be3 {[%clk 0:02:43.7]} 9... Nd5 {[%clk
0:02:46.5]} 10. Bd2 {[%clk 0:02:42.1]} 10... Nc6 {[%clk 0:02:43.4]} 11. c3
{[%clk 0:02:37.9]} 11... Bd6 {[%clk 0:02:30.5]} 12. Ne4 {[%clk 0:02:34.7]} 12...
Be7 {[%clk 0:02:27.1]} 13. a4 {[%clk 0:02:27.1]} 13... O-O {[%clk 0:02:25.3]}
14. a5 {[%clk 0:02:26.8]} 14... a6 {[%clk 0:02:24.8]} 15. O-O {[%clk 0:02:25.8]}
15... Bh5 {[%clk 0:02:21.9]} 16. Re1 {[%clk 0:02:23.3]} 16... Bg6 {[%clk
0:02:19.4]} 17. Bc4 {[%clk 0:02:20.2]} 17... Nf6 {[%clk 0:02:12.6]} 18. Ng3
{[%clk 0:02:17]} 18... Bd6 {[%clk 0:02:07.1]} 19. Ne5 {[%clk 0:02:07.3]} 19...
Bxe5 {[%clk 0:01:58.8]} 20. dxe5 {[%clk 0:02:07.1]} 20... Nd7 {[%clk 0:01:59]}
21. Bf4 {[%clk 0:02:06.6]} 21... Nc5 {[%clk 0:01:58.3]} 22. b4 {[%clk
0:02:02.1]} 22... Nd3 {[%clk 0:01:57.3]} 23. Bxd3 {[%clk 0:02:02.4]} 23... Qxd3
{[%clk 0:01:57]} 24. Qxd3 {[%clk 0:01:56.3]} 24... Bxd3 {[%clk 0:01:57.9]} 25.
h4 {[%clk 0:01:54.7]} 25... Rfd8 {[%clk 0:01:55.5]} 26. Red1 {[%clk 0:01:53.4]}
26... Bc2 {[%clk 0:01:53.9]} 27. Rxd8+ {[%clk 0:01:46.2]} 27... Rxd8 {[%clk
0:01:54.8]} 28. Rc1 {[%clk 0:01:46.3]} 28... Bh7 {[%clk 0:01:50.4]} 29. h5
{[%clk 0:01:39.3]} 29... Rd5 {[%clk 0:01:48.2]} 30. Re1 {[%clk 0:01:27]} 30...
Rd3 {[%clk 0:01:47.3]} 31. Ne2 {[%clk 0:01:22]} 31... Kf8 {[%clk 0:01:42.2]} 32.
f3 {[%clk 0:01:21.6]} 32... Ke7 {[%clk 0:01:41.4]} 33. Kf2 {[%clk 0:01:21.5]}
33... Rd5 {[%clk 0:01:27.2]} 34. Nc1 {[%clk 0:01:18.2]} 34... Ke8 {[%clk
0:01:21.8]} 35. Nb3 {[%clk 0:01:15.7]} 35... b6 {[%clk 0:01:17.7]} 36. axb6
{[%clk 0:01:12.2]} 36... cxb6 {[%clk 0:01:18.6]} 37. Ra1 {[%clk 0:01:02.6]}
37... a5 {[%clk 0:01:18.3]} 38. bxa5 {[%clk 0:00:48.6]} 38... bxa5 {[%clk
0:01:16.3]} 39. c4 {[%clk 0:00:44.9]} 39... Rd3 {[%clk 0:01:08.7]} 40. Nxa5
{[%clk 0:00:35.1]} 40... Nxa5 {[%clk 0:01:00.8]} 41. Rxa5 {[%clk 0:00:36]} 41...
Rd4 {[%clk 0:00:57.5]} 42. Ra8+ {[%clk 0:00:35.4]} 42... Ke7 {[%clk 0:00:54.9]}
43. Bc1 {[%clk 0:00:28.7]} 43... Rxc4 {[%clk 0:00:49]} 44. Ba3+ {[%clk
0:00:26.3]} 44... Kd7 {[%clk 0:00:49]} 45. Rf8 {[%clk 0:00:26.9]} 45... Rc2+
{[%clk 0:00:48.3]} 46. Kg3 {[%clk 0:00:26.3]} 46... Bd3 {[%clk 0:00:42.8]} 47.
Rxf7+ {[%clk 0:00:26.1]} 47... Kc6 {[%clk 0:00:33.1]} 48. Bd6 {[%clk 0:00:19.5]}
48... Bf1 {[%clk 0:00:32.1]} 49. Rc7+ {[%clk 0:00:19]} 49... Kd5 {[%clk
0:00:31.4]} 50. Rxc2 {[%clk 0:00:19.9]} 50... Bd3 {[%clk 0:00:31]} 51. Rb2
{[%clk 0:00:19.8]} 1-0

[Event "Early-Titled-Tuesday-Blitz-March-05-2024"]
[Site "Chess.com"]
[Date "2024.03.05"]
[Round "2"]
[White "Byniolus"]
[Black "RedFirePanda"]
[Result "1-0"]
[WhiteElo "2817"]
[BlackElo "2548"]
[TimeControl "180+1"]
[EndTime "8:18:39 PST"]
[Termination "Byniolus won on time"]

1. d4 {[%clk 0:03:00.9]} 1... Nf6 {[%clk 0:02:58.9]} 2. Nf3 {[%clk 0:03:00.9]}
2... g6 {[%clk 0:02:54.4]} 3. Bf4 {[%clk 0:02:59.7]} 3... d6 {[%clk 0:02:52.9]}
4. h3 {[%clk 0:02:59.4]} 4... Bg7 {[%clk 0:02:53.1]} 5. e3 {[%clk 0:03:00]} 5...
O-O {[%clk 0:02:51.4]} 6. Be2 {[%clk 0:03:00.4]} 6... c5 {[%clk 0:02:46.3]} 7.
c3 {[%clk 0:03:00.4]} 7... Re8 {[%clk 0:02:42.7]} 8. O-O {[%clk 0:02:58.2]} 8...
Nbd7 {[%clk 0:02:42.7]} 9. a4 {[%clk 0:02:56]} 9... b6 {[%clk 0:02:37.7]} 10. a5
{[%clk 0:02:55.2]} 10... Bb7 {[%clk 0:02:37.2]} 11. Nbd2 {[%clk 0:02:51.7]}
11... e5 {[%clk 0:02:29.8]} 12. Bh2 {[%clk 0:02:51.8]} 12... Ne4 {[%clk
0:02:17.7]} 13. dxe5 {[%clk 0:02:38.2]} 13... dxe5 {[%clk 0:01:56.4]} 14. Qb3
{[%clk 0:02:32.2]} 14... Nxd2 {[%clk 0:01:43.2]} 15. Nxd2 {[%clk 0:02:33.1]}
15... Qc7 {[%clk 0:01:38.3]} 16. Bc4 {[%clk 0:02:20.5]} 16... Nf6 {[%clk
0:01:32.8]} 17. Rfd1 {[%clk 0:02:16.6]} 17... Ne4 {[%clk 0:01:27]} 18. Nxe4
{[%clk 0:01:52.5]} 18... Bxe4 {[%clk 0:01:27.9]} 19. Bd5 {[%clk 0:01:52.9]}
19... Bxd5 {[%clk 0:01:24.6]} 20. Rxd5 {[%clk 0:01:53.8]} 20... Rab8 {[%clk
0:00:54.4]} 21. axb6 {[%clk 0:01:49]} 21... axb6 {[%clk 0:00:36.2]} 22. Rad1
{[%clk 0:01:41.3]} 22... Rbd8 {[%clk 0:00:26.4]} 23. Qb5 {[%clk 0:01:34.8]}
23... Bf6 {[%clk 0:00:12.9]} 24. Rd7 {[%clk 0:01:34.5]} 24... Qb8 {[%clk
0:00:12.1]} 25. Bg3 {[%clk 0:01:25]} 25... Kg7 {[%clk 0:00:08.2]} 26. Qc4 {[%clk
0:01:19.7]} 26... Rxd7 {[%clk 0:00:06]} 27. Rxd7 {[%clk 0:01:19.5]} 27... Re7
{[%clk 0:00:06.6]} 28. Rd5 {[%clk 0:01:12.9]} 28... Qa8 {[%clk 0:00:04.5]} 29.
Kh2 {[%clk 0:01:08.9]} 29... Qa1 {[%clk 0:00:03.3]} 30. Qb5 {[%clk 0:01:04.4]}
30... Qa8 {[%clk 0:00:03.2]} 31. e4 {[%clk 0:01:03.4]} 31... Qb7 {[%clk
0:00:02.1]} 32. f3 {[%clk 0:01:03.9]} 32... Re6 {[%clk 0:00:02.3]} 33. Rd7
{[%clk 0:01:02.5]} 33... Qb8 {[%clk 0:00:01.6]} 34. Qc4 {[%clk 0:01:02.2]} 34...
Re7 {[%clk 0:00:02.2]} 35. Rd5 {[%clk 0:01:02.5]} 35... Re6 {[%clk 0:00:02.3]}
36. Qb5 {[%clk 0:00:58.1]} 36... Qc7 {[%clk 0:00:02.7]} 37. Qd7 {[%clk
0:00:49.7]} 37... Qc6 {[%clk 0:00:03.2]} 38. Qxc6 {[%clk 0:00:48.4]} 38... Rxc6
{[%clk 0:00:04.1]} 39. Bxe5 {[%clk 0:00:48.7]} 39... Bxe5+ {[%clk 0:00:03.8]}
40. Rxe5 {[%clk 0:00:49.6]} 40... b5 {[%clk 0:00:03.1]} 41. Kg3 {[%clk
0:00:47.8]} 41... Kf6 {[%clk 0:00:02.4]} 42. Rd5 {[%clk 0:00:46.8]} 42... Ke6
{[%clk 0:00:03]} 43. Kf4 {[%clk 0:00:45.7]} 43... Ke7 {[%clk 0:00:01.8]} 44. h4
{[%clk 0:00:45.4]} 44... Ke6 {[%clk 0:00:02.4]} 45. b4 {[%clk 0:00:39.7]} 45...
cxb4 {[%clk 0:00:02.2]} 46. cxb4 {[%clk 0:00:40.6]} 46... Rb6 {[%clk 0:00:01.9]}
47. g4 {[%clk 0:00:40.9]} 47... Rb8 {[%clk 0:00:02]} 48. Kg5 {[%clk 0:00:38.8]}
48... f6+ {[%clk 0:00:01.3]} 49. Kh6 {[%clk 0:00:38.7]} 49... Rb7 {[%clk
0:00:02]} 50. f4 {[%clk 0:00:38]} 50... Ke7 {[%clk 0:00:01.6]} 51. Kxh7 {[%clk
0:00:37.3]} 51... Ke6+ {[%clk 0:00:01.8]} 52. Kxg6 {[%clk 0:00:37]} 52... Rb8
{[%clk 0:00:01.9]} 53. f5+ {[%clk 0:00:34.8]} 53... Ke7 {[%clk 0:00:01.7]} 54.
Kg7 {[%clk 0:00:35.7]} 1-0